fUST/lending_fUST_20240819
["ID","MTS","AMOUNT","RATE_DAILY","PERIOD"]
[335253016,1724039441504,-178.886012,0.00016,2]
[335253017,1724039441514,-968.465078,0.00016,2]
[335253018,1724039441524,-968.465078,0.00016,2]
[335253019,1724039441534,-151.0,0.00016,2]
[335253020,1724039441544,-379.972117,0.00016,2]
[335253021,1724039441553,-379.972117,0.00016,2]
[335253022,1724039441563,-444.986094,0.00016,2]
[335253023,1724039441572,-444.986094,0.00016,2]
[335253024,1724039441581,-151.0,0.00016,2]
[335253025,1724039441591,-214.886552,0.00016,2]
[335253026,1724039441600,-222.456338,0.00016,2]
[335253027,1724039441612,-222.456338,0.00016,2]
[335253028,1724039441623,-189.1451,0.00016063,2]
[335253029,1724039441636,-224.772582,0.00016063,2]
[335253030,1724039441648,-162.697687,0.00016063,2]
[335253031,1724039441659,-167.901839,0.00016063,2]
[335253032,1724039441671,-500.0,0.00016073,2]
[335253033,1724039441681,-500.0,0.00016073,2]
[335253034,1724039441691,-500.0,0.00016073,2]
[335253035,1724039441703,-160.0,0.00016075,7]
[335253036,1724039441715,-542.83358262,0.00016091,2]
[335253037,1724039441725,-158.036929,0.000161,2]
[335253038,1724039441736,-153.0,0.0001611,2]
[335253039,1724039441748,-156.7995767,0.0001611,2]
[335253040,1724039441760,-153.0,0.0001611,2]
[335253041,1724039441771,-153.0,0.0001611,2]
[335253042,1724039441781,-153.0,0.0001611,2]
[335253043,1724039441793,-153.0,0.0001611,2]
[335253044,1724039441806,-153.0,0.0001611,2]
[335253045,1724039441817,-153.0,0.0001611,2]
[335253046,1724039441827,-153.0,0.0001611,2]
[335253047,1724039441837,-433.7848853,0.0001611,2]
[335253048,1724039441846,-306.0,0.0001611,2]
[335253049,1724039441864,-160.242349,0.00016193,2]
[335253050,1724039441880,-150.112233,0.000162,2]
[335253051,1724039441890,-150.112233,0.000162,2]
[335253052,1724039441901,-589.1675126,0.00016201,2]
[335253053,1724039441910,-295.0138388,0.00016201,2]
[335253054,1724039441922,-151.367965,0.00016228,2]
[335253055,1724039441933,-151.0,0.00016228,2]
[335253056,1724039441945,-198.659333,0.00016228,2]
[335253057,1724039441958,-198.659333,0.00016228,2]
[335253058,1724039441969,-215.331835,0.00016228,2]
[335253059,1724039441980,-215.331835,0.00016228,2]
[335253060,1724039441992,-151.0,0.00016228,2]
[335253061,1724039442002,-151.0,0.00016228,2]
[335253062,1724039442012,-162.657237,0.00016228,2]
[335253063,1724039442022,-151.0,0.00016228,2]
[335253064,1724039442031,-184.18505,0.00016228,2]
[335253065,1724039442041,-184.18505,0.00016228,2]
[335253066,1724039442051,-151.0,0.00016228,2]
[335253067,1724039442060,-151.0,0.00016228,2]
[335253068,1724039442070,-151.0,0.00016228,2]
[335253069,1724039442079,-809.114912,0.00016228,2]
[335253070,1724039442089,-809.114912,0.00016228,2]
[335253071,1724039442099,-283.046539,0.00016228,2]
[335253072,1724039442111,-283.046539,0.00016228,2]
[335253073,1724039442121,-1185.556722,0.00016228,2]
[335253074,1724039442132,-1185.556722,0.00016228,2]
[335253075,1724039442144,-151.0,0.00016228,2]
[335253076,1724039442155,-178.886012,0.00016228,2]
[335253077,1724039442165,-178.886012,0.00016228,2]
[335253078,1724039442176,-968.465078,0.00016228,2]
[335253079,1724039442186,-968.465078,0.00016228,2]
[335253080,1724039442196,-151.0,0.00016228,2]
[335253081,1724039442207,-379.972117,0.00016228,2]
[335253082,1724039442217,-379.972117,0.00016228,2]
[335253083,1724039442227,-444.986094,0.00016228,2]
[335253084,1724039442237,-444.986094,0.00016228,2]
[335253085,1724039442247,-151.0,0.00016228,2]
[335253086,1724039442257,-197.267376,0.00016228,2]
[335253087,1724039442267,-197.267376,0.00016228,2]
[335253088,1724039442279,-457.848777,0.00016228,2]
[335253089,1724039442290,-457.848777,0.00016228,2]
[335253090,1724039442300,-560.081687,0.00016228,2]
[335253091,1724039442310,-560.081687,0.00016228,2]
[335253092,1724039442320,-882.585703,0.00016228,2]
[335253093,1724039442330,-151.0,0.00016228,2]
[335253094,1724039442491,-882.585703,0.00016228,2]
[335253095,1724039442502,-1601.505462,0.00016228,2]
[335253096,1724039442515,-1601.505462,0.00016228,2]
[335253097,1724039442524,-189.1451,0.00016259,2]
[335253098,1724039442533,-224.772582,0.00016259,2]
[335253099,1724039442543,-162.697687,0.00016259,2]
[335253100,1724039442553,-167.901839,0.00016259,2]
[335253101,1724039442563,-590.0276776,0.00016274,2]
[335253102,1724039442573,-295.0138388,0.00016274,2]
[335253103,1724039442583,-295.0138388,0.00016274,2]
[335253104,1724039442593,-295.0138388,0.00016274,2]
[335253105,1724039442603,-295.0138388,0.00016274,2]
[335253106,1724039442612,-151.0,0.00016274,2]
[335253107,1724039442621,-151.0,0.00016274,2]
[335253108,1724039442631,-1309.738412,0.00016274,2]
[335253109,1724039442640,-1309.738412,0.00016274,2]
[335253110,1724039442649,-151.0,0.00016274,2]
[335253111,1724039442660,-271.039611,0.00016274,2]
[335253112,1724039442670,-151.0,0.00016274,2]
[335253113,1724039442679,-151.0,0.00016274,2]
[335253114,1724039442688,-1000.0,0.00016279,2]
[335253115,1724039442698,-151.0,0.000163,2]
[335253116,1724039442708,-198.659333,0.000163,2]
[335253117,1724039442717,-198.659333,0.000163,2]
[335253118,1724039442726,-215.331835,0.000163,2]
[335253119,1724039442736,-215.331835,0.000163,2]
[335253120,1724039442745,-157.434422,0.000163,2]
[335253121,1724039442755,-151.0,0.000163,2]
[335253122,1724039442765,-151.0,0.000163,2]
[335253123,1724039442775,-151.0,0.000163,2]
[335253124,1724039442786,-151.0,0.000163,2]
[335253125,1724039442796,-151.0,0.000163,2]
[335253126,1724039442806,-418.802026,0.000163,2]
[335253127,1724039442816,-418.802026,0.000163,2]
[335253128,1724039442828,-151.0,0.000163,2]
[335253129,1724039442838,-1083.18422,0.000163,2]
[335253130,1724039442849,-1083.18422,0.000163,2]
[335253131,1724039442860,-176.717623,0.000163,2]
[335253132,1724039442872,-176.717623,0.000163,2]
[335253133,1724039442884,-344.842765,0.000163,2]
[335253134,1724039442894,-153.0,0.00016301,2]
[335253135,1724039442904,-1000.0,0.00016307,2]
[335253136,1724039442914,-113690.51221435,0.0001631,2]
[335253137,1724039442923,-151.0,0.0001631,2]
[335253138,1724039442933,-184.18505,0.0001631,2]
[335253139,1724039442943,-184.18505,0.0001631,2]
[335253140,1724039442955,-151.0,0.0001631,2]
[335253141,1724039442966,-155.2458,0.0001631,2]
[335253142,1724039442976,-151.0,0.0001631,2]
[335253143,1724039442985,-809.114912,0.0001631,2]
[335253144,1724039442995,-809.114912,0.0001631,2]
[335253145,1724039443005,-283.046539,0.0001631,2]
[335253146,1724039443015,-283.046539,0.0001631,2]
[335253147,1724039443026,-1185.556722,0.0001631,2]
[335253148,1724039443036,-1185.556722,0.0001631,2]
[335253149,1724039443046,-151.0,0.0001631,2]
[335253150,1724039443055,-178.886012,0.0001631,2]
[335253151,1724039443065,-178.886012,0.0001631,2]
[335253152,1724039443075,-293.16432216,0.0001631,2]
[335253175,1724039596190,-255.71,0.00010959,2]
[335253176,1724039596214,-933.72662297,0.00013599,2]
[335253177,1724039596238,-20794.87454007,0.00013697,2]
[335253178,1724039596263,-1191.62340919,0.00013699,2]
[335253179,1724039596286,-1191.62340919,0.00013699,2]
[335253180,1724039596309,-1191.62340919,0.00013699,2]
[335253181,1724039596332,-1191.62340919,0.00013699,2]
[335253182,1724039596354,-1191.62340919,0.00013699,2]
[335253183,1724039596377,-1191.62340919,0.00013699,2]
[335253184,1724039596400,-1191.62340919,0.00013699,2]
[335253185,1724039596422,-1191.62340919,0.00013699,2]
[335253186,1724039596445,-1191.62340919,0.00013699,2]
[335253187,1724039596470,-1191.62340919,0.00013699,2]
[335253188,1724039596495,-1191.62340919,0.00013699,2]
[335253189,1724039596519,-1191.62340919,0.00013699,2]
[335253190,1724039596541,-1191.62340919,0.00013699,2]
[335253191,1724039596563,-1191.62340919,0.00013699,2]
[335253192,1724039596586,-1191.62340919,0.00013699,2]
[335253193,1724039596608,-1191.62340919,0.00013699,2]
[335253194,1724039596630,-1191.62340919,0.00013699,2]
[335253195,1724039596652,-1191.62340919,0.00013699,2]
[335253196,1724039596674,-1191.62340919,0.00013699,2]
[335253197,1724039596695,-1191.62340919,0.00013699,2]
[335253198,1724039596717,-1191.62340919,0.00013699,2]
[335253199,1724039596740,-1191.62340919,0.00013699,2]
[335253200,1724039596766,-1191.62340919,0.00013699,2]
[335253201,1724039596788,-1191.62340914,0.00013699,2]
[335253202,1724039596811,-1191.62340913,0.00013699,2]
[335253203,1724039596833,-158.10419074,0.00013792,2]
[335253204,1724039596856,-547.34696336,0.0001397,2]
[335253205,1724039596879,-500.0,0.0001397,2]
[335253206,1724039596901,-247.99716484,0.0001397,2]
[335253207,1724039596924,-500.0,0.0001397,2]
[335253208,1724039596951,-500.0,0.0001397,2]
[335253209,1724039596975,-500.0,0.0001397,2]
[335253210,1724039596997,-500.0,0.0001397,2]
[335253211,1724039597023,-500.0,0.0001397,2]
[335253212,1724039597045,-500.0,0.0001397,2]
[335253213,1724039597068,-500.0,0.0001397,2]
[335253214,1724039597091,-217.30496664,0.0001397,2]
[335253215,1724039597113,-500.0,0.0001397,2]
[335253216,1724039597135,-500.0,0.0001397,2]
[335253217,1724039597156,-489.2364891,0.0001397,2]
[335253218,1724039597178,-500.0,0.0001397,2]
[335253219,1724039597200,-500.0,0.0001397,2]
[335253220,1724039597223,-500.0,0.0001397,2]
[335253221,1724039597245,-500.0,0.0001397,2]
[335253222,1724039597273,-500.0,0.0001397,2]
[335253223,1724039597295,-500.0,0.0001397,2]
[335253224,1724039597317,-500.0,0.0001397,2]
[335253225,1724039597339,-297.40079525,0.0001397,2]
[335253226,1724039597362,-500.0,0.0001397,2]
[335253227,1724039597384,-500.0,0.0001397,2]
[335253228,1724039597560,-500.0,0.0001397,2]
[335253229,1724039597584,-500.0,0.0001397,2]
[335253230,1724039597607,-200.0,0.0001397,2]
[335253231,1724039597631,-24900.0,0.00014066,2]
[335253232,1724039597652,-288.27624498,0.00014245,2]
[335253233,1724039597675,-495.526907,0.00014245,2]
[335253234,1724039597697,-600.88577429,0.00014245,2]
[335253235,1724039597719,-817.51538182,0.00014519,3]
[335253236,1724039597783,413.66267349,0.00014245,2]
[335253237,1724039616406,155.17434625,0.00014519,2]
[335253238,1724039619550,862.44048895,0.00014519,2]
[335253239,1724039625200,1305.949811,0.00014595,2]
[335253240,1724039631682,154.98705468,0.00014519,2]
[335253241,1724039634542,862.44048895,0.00014519,2]
[335253242,1724039644855,240.56027255,0.00014519,2]
[335253243,1724039662562,3000.0,0.00014595,2]
[335253244,1724039668423,189.790055,0.00014704,2]
[335253245,1724039668663,189.790055,0.0001496,2]
[335253246,1724039680435,288.27624498,0.00014519,2]
[335253247,1724039683985,411.35262048,0.00014519,2]
[335253248,1724039686056,600.88577429,0.00014519,2]
[335253249,1724039690039,11225.8093155,0.00014245,2]
[335253251,1724039695833,181.44493918,0.00014519,3]
[335253252,1724039708588,1671.80534877,0.0001496,2]
[335253253,1724039717169,158.06758512,0.00014519,2]
[335253254,1724039733135,330.15136646,0.00014519,2]
[335253255,1724039765540,862.44048895,0.00014519,2]
[335253256,1724039767227,600.88577429,0.00014519,2]
[335253257,1724039772414,288.27624498,0.00014519,2]
[335253258,1724039812102,1671.80534877,0.00014519,2]
[335253259,1724039852083,600.88577429,0.00014519,2]
[335253260,1724039863548,862.44048895,0.00014519,2]
[335253261,1724039865934,230.3506096,0.00014519,2]
[335253262,1724039904491,251.02881232,0.00014519,3]
[335253263,1724039919605,1119.94028819,0.00014519,2]
[335253264,1724039941086,164.9708181,0.00014519,2]
[335253265,1724039944638,330.15136646,0.00014519,2]
[335253266,1724039987059,862.44048895,0.00014519,2]
[335253268,1724040017057,862.44048895,0.00014519,2]
[335253269,1724040067659,23685.2762596,0.00014646,2]
[335253271,1724040136065,862.44048895,0.00014519,2]
[335253275,1724040171997,189.790055,0.00014777,2]
[335253278,1724040207774,3000.0,0.0001476,2]
[335253280,1724040226186,862.44048895,0.00014519,2]
[335253282,1724040237525,652.974905,0.00014661,2]
[335253284,1724040305105,783.76127895,0.00014519,2]
[335253289,1724040430668,330.15136646,0.00014519,2]
[335253293,1724040530112,326.880335,0.00014247,2]
[335253312,1724040638010,-500.0,0.00015269,2]
[335253313,1724040638020,-591.32293816,0.00015407,2]
[335253314,1724040638031,-160.242349,0.00015507,2]
[335253315,1724040638042,-201.146418,0.00015507,2]
[335253316,1724040638052,-187.036577,0.00015507,2]
[335253317,1724040638062,-168.901412,0.00015507,2]
[335253318,1724040638073,-189.790055,0.00015547,2]
[335253319,1724040638082,-510.0669066,0.00015592,2]
[335253320,1724040638091,-400.48555915,0.00015592,2]
[335253321,1724040638101,-500.0,0.00015592,2]
[335253322,1724040638113,-500.0,0.00015592,2]
[335253323,1724040638123,-500.0,0.00015592,2]
[335253324,1724040638134,-500.0,0.00015592,2]
[335253325,1724040638144,-213.31018509,0.00015592,2]
[335253326,1724040638180,-286.68981491,0.00015592,2]
[335253327,1724040638190,-500.0,0.00015592,2]
[335253328,1724040638201,-500.0,0.00015592,2]
[335253329,1724040638211,-500.0,0.00015592,2]
[335253330,1724040638222,-625.45897552,0.00015592,2]
[335253331,1724040638231,-500.0,0.00015592,2]
[335253332,1724040638243,-500.0,0.00015592,2]
[335253333,1724040638252,-500.0,0.00015592,2]
[335253334,1724040638262,-500.0,0.00015592,2]
[335253335,1724040638271,-500.0,0.00015592,2]
[335253336,1724040638281,-500.0,0.00015592,2]
[335253337,1724040638292,-500.0,0.00015592,2]
[335253338,1724040638303,-500.0,0.00015592,2]
[335253339,1724040638314,-500.0,0.00015592,2]
[335253340,1724040638324,-500.0,0.00015592,2]
[335253341,1724040638333,-500.0,0.00015592,2]
[335253342,1724040638342,-500.0,0.00015592,2]
[335253343,1724040638352,-500.0,0.00015592,2]
[335253344,1724040638361,-500.0,0.00015592,2]
[335253345,1724040638371,-500.0,0.00015592,2]
[335253346,1724040638380,-500.0,0.00015592,2]
[335253347,1724040638392,-500.0,0.00015592,2]
[335253348,1724040638403,-500.0,0.00015592,2]
[335253349,1724040638414,-500.0,0.00015592,2]
[335253350,1724040638424,-500.0,0.00015592,2]
[335253351,1724040638434,-500.0,0.00015592,2]
[335253352,1724040638446,-458.9917308,0.000156,2]
[335253353,1724040638456,-150.0,0.00015611,2]
[335253354,1724040638466,-150.594,0.00015611,2]
[335253355,1724040638477,-150.0,0.00015611,2]
[335253356,1724040638488,-178.52347,0.00015671,2]
[335253357,1724040638499,-193.735134,0.00015671,2]
[335253358,1724040638508,-178.523469,0.00015671,2]
[335253359,1724040638518,-182.570873,0.00015671,2]
[335253360,1724040638528,-201.146418,0.000157,2]
[335253361,1724040638538,-187.036577,0.000157,2]
[335253362,1724040638550,-295.0138388,0.00015708,2]
[335253363,1724040638560,-295.0138388,0.00015708,2]
[335253364,1724040638571,-295.0138388,0.00015708,2]
[335253365,1724040638581,-153.0,0.000158,2]
[335253366,1724040638593,-153.0,0.000158,2]
[335253367,1724040638603,-2000.0,0.0001589,2]
[335253368,1724040638614,-153.0,0.0001589,2]
[335253369,1724040638623,-153.0,0.0001589,2]
[335253370,1724040638632,-153.0,0.0001589,2]
[335253371,1724040638642,-153.0,0.0001589,2]
[335253372,1724040638652,-397.350038,0.0001589,2]
[335253373,1724040638661,-201.146418,0.00015894,2]
[335253374,1724040638672,-187.036577,0.00015894,2]
[335253375,1724040638682,-827.91648994,0.00015899,2]
[335253376,1724040638691,-295.0138388,0.000159,2]
[335253377,1724040638701,-206.3303187,0.000159,2]
[335253378,1724040638712,-153.0,0.000159,2]
[335253379,1724040638724,-153.0,0.000159,2]
[335253380,1724040638736,-306.0,0.000159,2]
[335253381,1724040638746,-827.9164899,0.00015984,2]
[335253382,1724040638757,-173.59801539,0.00015989,2]
[335253383,1724040638769,-500.0,0.00015989,2]
[335253384,1724040638778,-500.0,0.00015989,2]
[335253385,1724040638789,-500.0,0.00015989,2]
[335253386,1724040638799,-500.0,0.00015989,2]
[335253387,1724040638809,-500.0,0.00015989,2]
[335253388,1724040638819,-434.54005664,0.00015989,2]
[335253436,1724040758333,232.18090084,0.00015,2]
[335253437,1724040765942,3000.0,0.00014969,2]
[335253445,1724040774697,330.15136646,0.00014519,2]
[335253451,1724040853711,330.15136646,0.00014519,2]
[335253457,1724040923710,330.15136646,0.00014519,2]
[335253465,1724041238509,326.487453,0.0001492,2]
[335253467,1724041247504,3000.0,0.00014947,2]
[335253483,1724041727732,163.243726,0.00014842,2]
[335253490,1724041758335,310.536318,0.00014247,2]
[335253500,1724041814996,261.2860375,0.00014846,2]
[335253917,1724041843247,-160.0,0.00015331,3]
[335253918,1724041843258,-150.0,0.00015674,2]
[335253919,1724041843269,-334.46860774,0.00015707,7]
[335253920,1724041843278,-160.0,0.00015756,4]
[335253921,1724041843289,-2632.28853026,0.00015787,2]
[335253940,1724041881378,699.3704229,0.00014878,2]
[335253945,1724042259480,163.243727,0.00014884,2]
[335253952,1724042375787,295.009502,0.00014247,2]
[335253957,1724042661365,330.15136646,0.00014519,2]
[335253962,1724042716322,160.93784805,0.00014519,2]
[335253966,1724042826158,-249.43343798,0.00015534,2]
[335254635,1724043333112,280.259026,0.00014247,2]
[335254636,1724043347121,228.5617366,0.00014956,2]
[335254644,1724044044132,-230.64890582,0.00015248,2]
[335254666,1724044232525,-5328.69624806,0.00015227,2]
[335254667,1724044232535,-312.1846768,0.00015248,2]
[335254668,1724044232545,-167.921841,0.00015507,2]
[335254669,1724044232554,-2000.0,0.00015747,2]
[335254670,1724044232563,-3406.16794017,0.00015747,2]
[335254671,1724044232573,-496.74989394,0.00015747,2]
[335254672,1724044232582,-496.74989394,0.00015752,2]
[335254673,1724044232592,-500.0,0.00015755,2]
[335254674,1724044232601,-462.54589755,0.00015755,2]
[335254675,1724044232610,-279.28338376,0.00015755,2]
[335254676,1724044232622,-220.71661624,0.00015755,2]
[335254677,1724044232631,-396.55616844,0.00015756,2]
[335254678,1724044232640,-118.96462529,0.00015756,2]
[335254679,1724044232651,-456.64379144,0.00015756,2]
[335254680,1724044232660,-53.65944007,0.00015756,2]
[335254803,1724044246602,-446.34055993,0.00015756,2]
[335254805,1724044246612,-500.0,0.00015756,2]
[335254807,1724044246622,-500.0,0.00015756,2]
[335254809,1724044246632,-127.19858655,0.00015756,2]
[335254811,1724044246644,-372.80141345,0.00015756,2]
[335254813,1724044246654,-500.0,0.00015756,2]
[335254816,1724044246663,-257.36193222,0.00015756,2]
[335254825,1724044281775,2282.40908483,0.00014519,3]
[335254826,1724044376771,385.77167414,0.00014519,3]
[335254827,1724044403616,266.246074,0.00014247,2]
[335254976,1724044872457,151.0,0.000142,2]
[335254989,1724044992738,5850.0,0.000164,30]
[335255016,1724045405755,252.93377,0.00014247,2]
[335255083,1724045432036,-426.98215575,0.00015272,2]
[335255086,1724045432048,-436.33522896,0.00015272,2]
[335255119,1724045437771,-4381.47195385,0.00015272,2]
[335255120,1724045437781,-953.38755458,0.00015275,2]
[335255121,1724045437791,-5328.69624806,0.0001543,2]
[335255122,1724045437800,-162.50509973,0.00015453,2]
[335255123,1724045437810,-5157.20423288,0.00015454,2]
[335255124,1724045437820,-5157.20423284,0.00015461,2]
[335255125,1724045437832,-151.0,0.00015461,2]
[335255127,1724045437842,-5157.20423284,0.00015468,2]
[335255129,1724045437854,-151.0,0.00015468,2]
[335255131,1724045437864,-5157.20423284,0.00015475,2]
[335255133,1724045437875,-151.0,0.00015475,2]
[335255135,1724045437885,-5157.20423284,0.00015482,2]
[335255137,1724045437894,-153.195765,0.00015482,2]
[335255139,1724045437904,-500.0,0.00015499,2]
[335255141,1724045437914,-500.0,0.00015499,2]
[335255143,1724045437924,-500.0,0.00015499,2]
[335255145,1724045437934,-500.0,0.00015499,2]
[335255147,1724045437943,-500.0,0.00015499,2]
[335255150,1724045437953,-200.0,0.00015499,2]
[335255152,1724045437963,-500.0,0.00015499,2]
[335255154,1724045437972,-500.0,0.00015499,2]
[335255156,1724045437982,-500.0,0.00015499,2]
[335255158,1724045437991,-500.0,0.000155,7]
[335255160,1724045438001,-500.0,0.000155,7]
[335255162,1724045438010,-500.0,0.000155,7]
[335255164,1724045438019,-500.0,0.000155,7]
[335255166,1724045438029,-500.0,0.000155,7]
[335255168,1724045438038,-500.0,0.000155,7]
[335255170,1724045438048,-500.0,0.000155,7]
[335255172,1724045438058,-500.0,0.000155,7]
[335255174,1724045438067,-500.0,0.000155,7]
[335255176,1724045438076,-500.0,0.000155,7]
[335255178,1724045438087,-500.0,0.000155,7]
[335255180,1724045438096,-500.0,0.000155,7]
[335255182,1724045438106,-500.0,0.000155,7]
[335255184,1724045438115,-399.33,0.000155,7]
[335255186,1724045438125,-500.0,0.000155,7]
[335255188,1724045438134,-500.0,0.000155,7]
[335255190,1724045438143,-500.0,0.000155,7]
[335255193,1724045438162,-500.0,0.000155,7]
[335255195,1724045438174,-500.0,0.000155,7]
[335255197,1724045438184,-500.0,0.000155,7]
[335255199,1724045438193,-500.0,0.000155,7]
[335255201,1724045438203,-500.0,0.000155,7]
[335255202,1724045438213,-151.0,0.000155,2]
[335255203,1724045438224,-151.0,0.000155,2]
[335255204,1724045438234,-500.0,0.000155,7]
[335255205,1724045438244,-151.0,0.000155,2]
[335255206,1724045438254,-151.0,0.000155,2]
[335255207,1724045438264,-500.0,0.000155,7]
[335255208,1724045438274,-151.0,0.000155,2]
[335255209,1724045438283,-151.0,0.000155,2]
[335255210,1724045438293,-500.0,0.000155,7]
[335255211,1724045438303,-500.0,0.000155,7]
[335255212,1724045438312,-500.0,0.000155,7]
[335255213,1724045438323,-500.0,0.000155,7]
[335255214,1724045438333,-500.0,0.000155,7]
[335255215,1724045438343,-500.0,0.000155,7]
[335255216,1724045438352,-500.0,0.000155,7]
[335255217,1724045438362,-500.0,0.000155,7]
[335255218,1724045438373,-500.0,0.000155,7]
[335255219,1724045438383,-500.0,0.000155,7]
[335255220,1724045438394,-1693.65246,0.000155,2]
[335255221,1724045438405,-1693.65246,0.000155,2]
[335255222,1724045438414,-1693.65246,0.000155,2]
[335255223,1724045438425,-1693.65246,0.000155,2]
[335255224,1724045438435,-1693.65246,0.000155,2]
[335255225,1724045438447,-1693.65246,0.000155,2]
[335255226,1724045438456,-1693.65246,0.000155,2]
[335255227,1724045438467,-1693.65246,0.000155,2]
[335255228,1724045438477,-1693.65246,0.000155,2]
[335255229,1724045438488,-1693.65246,0.000155,2]
[335255230,1724045438498,-1693.65246,0.000155,2]
[335255231,1724045438509,-1693.65246,0.000155,2]
[335255232,1724045438522,-566.789404,0.000155,2]
[335255233,1724045438534,-566.789404,0.000155,2]
[335255234,1724045438544,-566.789404,0.000155,2]
[335255235,1724045438554,-566.789404,0.000155,2]
[335255236,1724045438564,-566.789404,0.000155,2]
[335255237,1724045438575,-566.789404,0.000155,2]
[335255238,1724045438585,-968.465078,0.000155,2]
[335255239,1724045438595,-566.789404,0.000155,2]
[335255240,1724045438605,-566.789404,0.000155,2]
[335255241,1724045438615,-968.465078,0.000155,2]
[335255242,1724045438625,-968.465078,0.000155,2]
[335255243,1724045438635,-566.789404,0.000155,2]
[335255244,1724045438645,-968.465078,0.000155,2]
[335255245,1724045438655,-566.789404,0.000155,2]
[335255246,1724045438665,-968.465078,0.000155,2]
[335255247,1724045438676,-566.789404,0.000155,2]
[335255248,1724045438686,-968.465078,0.000155,2]
[335255249,1724045438696,-566.789404,0.000155,2]
[335255250,1724045438705,-968.465078,0.000155,2]
[335255251,1724045438715,-968.465078,0.000155,2]
[335255252,1724045438725,-968.465078,0.000155,2]
[335255253,1724045438735,-968.465078,0.000155,2]
[335255254,1724045438745,-968.465078,0.000155,2]
[335255255,1724045438755,-968.465078,0.000155,2]
[335255256,1724045438765,-151.0,0.000155,2]
[335255257,1724045438774,-151.0,0.000155,2]
[335255258,1724045438784,-151.0,0.000155,2]
[335255259,1724045438794,-151.0,0.000155,2]
[335255260,1724045438804,-151.0,0.000155,2]
[335255261,1724045438813,-155.2458,0.000155,2]
[335255262,1724045438826,-151.0,0.000155,2]
[335255263,1724045438838,-151.0,0.000155,2]
[335255264,1724045438848,-920.006189,0.000155,2]
[335255265,1724045438857,-151.0,0.000155,2]
[335255266,1724045438867,-920.006189,0.000155,2]
[335255267,1724045438880,-154.25959,0.000155,2]
[335255268,1724045438890,-920.006189,0.000155,2]
[335255269,1724045438900,-920.006189,0.000155,2]
[335255270,1724045438911,-920.006189,0.000155,2]
[335255271,1724045438920,-920.006189,0.000155,2]
[335255272,1724045438930,-920.006189,0.000155,2]
[335255273,1724045438939,-920.006189,0.000155,2]
[335255274,1724045438950,-920.006189,0.000155,2]
[335255275,1724045438959,-920.006189,0.000155,2]
[335255276,1724045438968,-920.006189,0.000155,2]
[335255277,1724045438978,-920.006189,0.000155,2]
[335255278,1724045438992,-151.0,0.000155,2]
[335255279,1724045439002,-920.006189,0.000155,2]
[335255280,1724045439012,-151.0,0.000155,2]
[335255281,1724045439023,-920.006189,0.000155,2]
[335255282,1724045439033,-151.0,0.000155,2]
[335255283,1724045439043,-920.006189,0.000155,2]
[335255284,1724045439053,-151.0,0.000155,2]
[335255285,1724045439062,-920.006189,0.000155,2]
[335255286,1724045439072,-151.0,0.000155,2]
[335255287,1724045439082,-920.006189,0.000155,2]
[335255288,1724045439092,-151.0,0.000155,2]